bitfinex-derivatives/quotes_ETHF0:USTF0_20250403
["timestamp","ask_amount","ask_price","bid_price","bid_amount"]
[1743676514829,1.4875,1802.3,1802.2,2.53429]
[1743676515230,0.0083153,1802.7,1802.6,1.10959]
[1743676515422,1.4958153,1802.7,1802.6,1.10959]
[1743676515817,0.0083153,1802.7,1802.6,1.10959]
[1743676516127,0.0083153,1802.7,1802.6,3.60959]
[1743676516923,0.0083153,1802.7,1802.6,1.10959]
[1743676517319,0.0083153,1802.7,1802.5,10.14141]
[1743676517519,1.1096,1802.6,1802.4,1.4683]
[1743676517832,1.10965,1802.5,1802.3,6.26474]
[1743676518033,0.0083153,1802.7,1802.6,1.10959]
[1743676518232,0.0083153,1802.7,1802.6,4.31739]
[1743676518927,1.1178753,1802.7,1802.5,1.10961]
[1743676519120,1.10975,1802.4,1802.0,10.22588]
[1743676519324,1.4092,1802.3,1802.2,1.10984]
[1743676519525,1.1178853,1802.7,1802.5,1.10965]
[1743676519834,0.0083153,1802.7,1802.6,1.10959]
[1743676520630,1.4870153,1802.7,1802.6,1.10959]
[1743676521928,9.9686553,1802.7,1802.3,1.10973]
[1743676522134,9.9686553,1802.7,1802.1,2.77467]
[1743676522135,2.07131,1802.6,1802.2,2.7746]
[1743676522435,1.4787,1802.5,1802.4,1.10972]
[1743676523129,1.1179053,1802.7,1802.4,1.10972]
[1743676523130,0.0083153,1802.7,1802.6,1.10959]
[1743676523329,0.0083153,1802.7,1802.6,4.31739]
[1743676523736,0.0083153,1802.7,1802.6,1.10959]
[1743676524235,0.0083153,1802.7,1802.6,4.31739]
[1743676524928,5.3e-06,1802.7,1802.6,4.31739]
[1743676525128,5.3e-06,1802.7,1802.6,6.81739]
[1743676525529,5.3e-06,1802.7,1802.6,4.31739]
[1743676527136,5.3e-06,1802.7,1802.5,1.10962]
[1743676527428,5.3e-06,1802.7,1802.2,1.10979]
[1743676527429,1.10976,1802.4,1802.2,1.10979]
[1743676527637,1.4148,1802.3,1802.2,1.10984]
[1743676528339,5.3e-06,1802.7,1802.2,1.10984]
[1743676528340,3.2078053,1802.7,1802.5,1.10964]
[1743676528833,2.52442,1802.6,1802.5,1.10964]
[1743676529033,2.52442,1802.6,1802.4,1.10966]
[1743676529428,1.10986,1802.2,1802.1,1.10989]
[1743676529629,1.10985,1802.2,1802.1,1.10988]
[1743676529829,1.10982,1802.3,1802.1,1.10988]
[1743676530135,4.6219,1802.2,1801.9,0.00831531]
[1743676530334,1.10996,1802.0,1801.9,0.00831531]
[1743676530722,1.10994,1802.1,1802.0,1.10996]
[1743676530935,2.52404,1802.1,1801.9,1.11829531]
[1743676531828,1.10996,1802.0,1801.9,0.00831531]
[1743676532031,5.75866,1802.0,1801.9,0.00831531]
[1743676533337,5.75866,1802.0,1801.9,1.11833531]
[1743676533635,1.4409,1802.0,1801.9,1.11833531]
[1743676534040,1.4409,1802.2,1802.1,1.1099]
[1743676534537,2.55074,1802.2,1802.1,1.1099]
[1743676534735,1.4409,1802.2,1802.1,1.1099]
[1743676535135,2.0323,1802.4,1802.1,1.1099]
[1743676535332,1.4894,1802.4,1802.3,1.10978]
[1743676536035,1.4894,1802.4,1802.0,4.2688]
[1743676536036,3.9894,1802.4,1802.0,4.2688]
[1743676536230,1.10988,1802.2,1801.9,1.11831531]
[1743676536436,1.4894,1802.1,1802.0,1.10996]
[1743676536939,1.10996,1802.0,1801.9,1.44971531]
[1743676537134,1.4894,1802.1,1801.9,1.44971531]
[1743676537135,2.59934,1802.1,1801.9,2.55972531]
[1743676537939,1.4894,1802.1,1801.9,2.55972531]
[1743676538134,1.4894,1802.1,1802.0,1.10996]
[1743676538341,1.4894,1802.1,1802.0,1.412]
[1743676538640,2.5993,1802.1,1802.0,1.412]
[1743676538940,2.5993,1802.1,1802.0,2.52196]
[1743676539136,1.10996,1802.0,1801.9,0.00831531]
[1743676539336,2.51036,1802.0,1801.9,0.00831531]
[1743676539537,5.01036,1802.0,1801.9,0.00831531]
[1743676539733,2.77527,1801.8,1801.4,6.75333]
[1743676539932,1.11025,1801.6,1801.4,3.54553]
[1743676540138,1.4004,1801.5,1801.4,3.54553]
[1743676540439,1.11037,1801.4,1801.2,4.31822]
[1743676540745,1.4004,1801.3,1801.2,4.31822]
[1743676542743,0.00831531,1801.5,1801.4,1.11033]
[1743676543838,1.11862531,1801.5,1801.3,1.11033]
[1743676544038,2.59772531,1801.5,1801.4,1.11033]
[1743676544734,1.48741531,1801.5,1801.4,1.11033]
[1743676546545,2.59768531,1801.5,1801.4,1.11033]
[1743676547340,1.48741531,1801.5,1801.2,2.5414]
[1743676547638,1.11039,1801.3,1801.2,1.1104]
[1743676548035,1.11039,1801.3,1801.2,1.11045]
[1743676548644,2.55109,1801.3,1801.2,1.11045]
[1743676548842,1.4407,1801.3,1801.2,1.11045]
[1743676549247,1.4407,1801.3,1801.2,2.57555]
[1743676550650,1.4407,1801.3,1801.2,1.11045]
[1743676551148,1.4407,1801.3,1801.1,0.00831531]
[1743676551350,2.55111,1801.3,1801.1,1.11879531]
[1743676551949,1.11045,1801.2,1801.1,0.00831531]
[1743676552146,1.11064,1800.9,1800.8,3.2078]
[1743676552347,1.11064,1800.9,1800.8,1.11066]
[1743676552844,2.58872,1801.0,1800.9,1.11064]
[1743676553250,1.11064,1800.9,1800.8,1.11065]
[1743676553444,2.62917,1800.9,1800.8,0.00831531]
[1743676553645,2.77687,1800.8,1800.2,8.76312]
[1743676553947,1.11087,1800.6,1800.3,4.25682]
[1743676554148,1.11082,1800.6,1800.5,1.11083]
[1743676554349,1.11081,1800.7,1800.5,1.11083]
[1743676554544,1.11082,1800.6,1800.5,1.11083]
[1743676554751,1.11093,1800.5,1800.4,1.11092]
[1743676554948,1.0531,1800.6,1800.3,1.11098]
[1743676554949,1.11096,1800.4,1800.3,1.11098]
[1743676555140,4.2609,1800.6,1800.3,2.78581531]
[1743676555345,1.11091,1800.5,1800.4,1.11091]
[1743676555754,2.17228531,1800.6,1800.5,1.11089]
[1743676556055,0.00831531,1800.6,1800.5,1.11089]
[1743676556253,0.00831531,1800.6,1800.5,2.59019]
[1743676559354,1.11917531,1800.6,1800.4,6.307]
[1743676559664,1.11917531,1800.6,1800.5,1.11089]
[1743676559665,0.00831531,1800.6,1800.5,1.11089]
[1743676559846,5.98386,1801.3,1800.6,2.77707]
[1743676560163,5.29024,1801.3,1801.1,1.11051]
[1743676560346,4.1798,1801.3,1800.7,7.38942]
[1743676560653,1.11053,1801.1,1800.9,1.11064]
[1743676560855,2.08243,1801.3,1801.1,1.11047]
[1743676561157,0.00831531,1801.2,1801.1,1.11052]
[1743676561549,0.00831531,1801.2,1800.9,1.0126]
[1743676561759,0.00831531,1801.2,1800.7,3.2078]
[1743676562055,5.98422,1801.1,1800.5,5.6365]
[1743676562256,1.11078,1800.7,1800.6,1.11079]
[1743676562453,0.9859,1801.0,1800.5,5.6365]
[1743676562649,0.9859,1801.0,1800.6,2.77705]
[1743676562849,0.9859,1801.0,1800.9,1.11064]
[1743676563251,2.13821531,1801.2,1801.1,1.11052]
[1743676563652,0.00831531,1801.2,1801.1,1.11052]
[1743676564049,1.11876531,1801.2,1801.1,1.11052]
[1743676565059,0.00831531,1801.2,1801.1,1.11052]
[1743676565258,1.11876531,1801.2,1801.1,1.11052]
[1743676565459,0.00831531,1801.2,1801.1,1.11052]
[1743676567058,0.00831531,1801.2,1801.0,1.11053]
[1743676567359,1.11876531,1801.2,1801.1,1.11052]
[1743676567960,0.00831531,1801.2,1801.1,1.11052]
[1743676568556,2.50831531,1801.2,1800.7,3.2078]
[1743676568756,1.1106,1801.0,1800.9,1.11057]
[1743676569755,4.19291531,1801.2,1800.7,3.2078]
[1743676569961,1.11074,1800.8,1800.7,1.1107]
[1743676570865,1.11076,1800.7,1800.6,4.53875]
[1743676571067,1.11076,1800.7,1800.6,3.428]
[1743676571259,1.11076,1800.7,1800.5,1.11085]
[1743676571260,1.11082,1800.6,1800.5,1.11089]
[1743676571459,1.1108,1800.7,1800.6,1.11078]
[1743676572166,1.11076,1800.8,1800.7,1.11073]
[1743676572363,3.74064,1800.9,1800.5,1.4424]
[1743676572563,1.11082,1800.6,1800.5,1.4424]
[1743676573266,1.11082,1800.7,1800.5,2.55323]
[1743676573470,1.11075,1800.8,1800.6,1.11082]
[1743676573661,1.11075,1800.8,1800.7,1.4424]
[1743676574065,2.59085,1800.8,1800.7,1.4424]
[1743676574264,1.11081,1800.7,1800.6,1.1108]
[1743676574464,2.59091,1800.7,1800.6,1.1108]
[1743676575164,1.4801,1800.7,1800.6,1.1108]
[1743676575364,3.2078,1801.0,1800.6,3.2078]
[1743676575669,1.11076,1800.7,1800.6,1.11078]
[1743676576467,1.11089,1800.5,1800.4,5.2441]
[1743676576772,1.11089,1800.5,1800.4,7.75835]
[1743676576973,1.11089,1800.5,1800.4,4.55055]
[1743676577467,2.50248,1800.6,1800.5,1.11089]
[1743676577767,1.3916,1800.6,1800.5,1.11089]
[1743676578072,3.21611531,1801.2,1800.9,1.11063]
[1743676578269,1.11058,1801.0,1800.8,1.11068]
[1743676578474,1.1106,1801.0,1800.8,1.11066]
[1743676578772,1.4073,1800.9,1800.8,1.11066]
[1743676578968,3.21611531,1801.2,1800.8,1.032]
[1743676579166,1.41561531,1801.2,1800.9,6.76979]
[1743676579474,2.52612531,1801.2,1801.0,1.11058]
[1743676579772,2.52612531,1801.2,1800.9,5.6592]
[1743676579773,1.41561531,1801.2,1801.1,1.11052]
[1743676579967,2.52606531,1801.2,1801.1,1.11052]
[1743676580773,1.11052,1801.1,1801.0,1.11058]
[1743676580975,1.4876,1801.1,1801.0,1.11058]
[1743676581175,2.59812,1801.1,1801.0,1.11058]
[1743676581672,1.4876,1801.1,1801.0,1.11058]
[1743676581870,1.4876,1801.1,1801.0,2.58048]
[1743676582176,0.00831531,1801.2,1801.1,1.11052]
[1743676582875,1.49591531,1801.2,1801.1,1.11052]
[1743676583675,1.11058,1801.0,1800.9,1.11064]
[1743676583879,6.74001531,1801.2,1800.8,3.80863]
[1743676584176,4.64269531,1801.2,1801.1,1.11052]
[1743676586270,1.49591531,1801.2,1801.1,1.11052]
[1743676587369,1.49591531,1801.2,1801.1,4.31832]
[1743676587571,1.49591531,1801.2,1801.1,1.11052]
[1743676587775,1.11058,1801.1,1801.0,1.11054]
[1743676588070,2.53221531,1801.2,1801.1,1.11052]
[1743676588280,1.49591531,1801.2,1801.1,1.11052]
[1743676588776,2.60636531,1801.2,1801.1,1.11052]
[1743676592180,4.27205531,1801.2,1800.9,4.6974]
[1743676592388,1.11058,1801.0,1800.9,5.80796]
[1743676592673,1.11057,1801.1,1801.0,1.11056]
[1743676592880,2.52917,1801.1,1801.0,1.11056]
[1743676594084,2.77645,1801.0,1800.6,1.0215]
[1743676594285,1.11075,1800.8,1800.7,1.11072]
[1743676594477,1.11076,1800.7,1800.6,2.13231]
[1743676594777,2.52936,1800.7,1800.6,1.0215]
[1743676595381,2.52936,1800.7,1800.6,2.13232]
[1743676595882,0.00831531,1801.2,1801.1,1.11052]
[1743676596181,21.42162476,1802.0,1801.6,1.11021]
[1743676596182,1.4732,1801.7,1801.6,1.11021]
[1743676596573,1.4732,1801.7,1801.5,1.0262]
[1743676596774,5.79117,1801.7,1801.4,1.11031]
[1743676596977,5.689,1801.7,1801.3,1.4558]
[1743676597181,1.11029,1801.5,1801.2,3.14993]
[1743676597378,1.4732,1801.4,1801.3,1.11870531]
[1743676599183,2.58353,1801.4,1801.3,0.00831531]
[1743676599479,5.08353,1801.4,1801.3,0.00831531]
[1743676600383,1.4732,1801.4,1801.3,1.11870531]
[1743676601772,5.08353,1801.4,1801.3,1e-08]
[1743676601980,1.11055,1801.1,1801.0,1.11056]
[1743676602978,2.14095,1801.1,1801.0,1.11056]
[1743676603181,1.4668,1801.2,1801.1,1.11052]
[1743676604585,1.4668,1801.2,1801.1,2.59282]
[1743676606384,2.57725,1801.2,1801.1,1.11052]
[1743676606782,1.4668,1801.2,1801.1,1.11052]
[1743676607678,3.2078,1801.5,1801.1,1.11052]
[1743676607881,19.25628709,1801.7,1801.3,5.98379]
[1743676608077,19.25628709,1801.7,1801.6,1.11021]
[1743676608286,21.42162476,1801.9,1801.8,1.11008]
[1743676608492,21.38836353,1801.9,1801.8,4.31788]
[1743676610400,0.00831531,1802.0,1801.9,1.11002]
[1743676610599,0.00831531,1802.0,1801.9,4.66572]
[1743676611597,1.11015,1801.7,1801.6,3.2078]
[1743676611900,1.1102,1801.7,1801.5,1.11025]
[1743676612101,1.5097,1801.6,1801.5,1.11025]
[1743676612313,1.1103,1801.5,1801.4,3.2078]
[1743676612799,1.11039,1801.3,1801.2,4.2625]
[1743676612995,1.11039,1801.3,1801.2,1.0547]
[1743676613194,1.11045,1801.2,1801.1,1.11046]
[1743676613497,1.5097,1801.2,1801.1,1.11046]
[1743676616292,4.2764,1801.5,1801.0,5.7081]
[1743676616490,4.2764,1801.5,1801.1,2.77622]
[1743676616699,4.2764,1801.5,1801.3,1.11036]
[1743676616893,1.11033,1801.4,1801.3,1.11036]
[1743676617292,1.11033,1801.4,1801.2,1.11041]
[1743676617497,4.2764,1801.5,1801.0,4.2631]
[1743676617498,7.0521,1801.5,1801.0,4.2631]
[1743676617698,1.531,1801.3,1801.0,5.6917]
[1743676617897,2.64144,1801.3,1801.2,1.11045]
[1743676618304,4.031,1801.3,1801.0,3.2078]
[1743676618500,4.7388,1801.3,1800.9,0.00831531]
[1743676618806,4.7388,1801.3,1801.1,1.11048]
[1743676618807,1.11047,1801.2,1801.1,1.11048]
[1743676619004,1.531,1801.2,1801.1,1.11048]
[1743676619506,1.0464,1801.4,1801.1,2.77623]
[1743676619802,1.531,1801.3,1801.2,1.11045]
[1743676620001,1.531,1801.3,1801.2,2.53905]
[1743676620903,4.2096,1801.7,1801.4,1.11033]
[1743676621110,4.2096,1801.7,1801.6,1.11021]
[1743676621111,4.7181,1801.7,1801.6,1.11021]
[1743676621296,5.82825,1801.7,1801.6,1.11021]
[1743676621704,4.7181,1801.7,1801.6,1.11021]
[1743676621904,0.00831531,1802.0,1801.8,1.11004]
[1743676622102,1.11008,1801.8,1801.7,2.64312]
[1743676622498,2.62035,1801.9,1801.8,1.11008]
[1743676622702,0.00831531,1802.0,1801.9,1.11002]
[1743676623106,1.48541531,1802.0,1801.9,1.11002]
[1743676623706,1.48541531,1802.0,1801.9,2.51732]
[1743676623905,0.00831531,1802.0,1801.9,2.51732]
[1743676624110,0.00831531,1802.0,1801.9,3.55032]
[1743676625304,1.11827531,1802.0,1801.9,3.55032]
[1743676625609,2.59537531,1802.0,1801.9,2.4403]
[1743676626216,2.59537531,1802.0,1801.9,3.55032]
[1743676626510,2.59537531,1802.0,1801.5,3.2078]
[1743676626511,2.77507,1801.9,1801.5,1.11022]
[1743676626717,5.6549,1801.8,1801.6,1.11021]
[1743676626908,3.55722,1801.8,1801.6,1.11018]
[1743676627108,1.11015,1801.7,1801.5,1.11023]
[1743676627309,1.4492,1801.6,1801.5,1.11023]
[1743676627516,2.55941,1801.6,1801.5,1.11023]
[1743676627816,1.4492,1801.6,1801.5,1.11023]
[1743676629314,1.4492,1801.6,1801.5,2.54333]
[1743676631212,2.55941,1801.6,1801.5,2.54333]
[1743676631414,2.55941,1801.6,1801.5,1.11023]
[1743676631813,7.157,1801.6,1801.1,0.991]
[1743676632114,3.2078,1801.4,1801.2,1.11045]
[1743676632318,1.4721,1801.3,1801.2,1.11045]
[1743676633020,2.07988,1801.7,1801.3,2.77593]
[1743676633213,1.11022,1801.6,1801.5,1.11025]
[1743676633418,2.58232,1801.6,1801.5,1.11025]
[1743676633615,1.4721,1801.6,1801.5,1.11025]
[1743676634020,2.58231,1801.6,1801.5,1.11025]
[1743676634519,1.4721,1801.6,1801.5,1.11025]
[1743676634913,2.58231,1801.6,1801.4,2.61059]
[1743676635221,2.58231,1801.6,1801.4,1.5003]
[1743676635521,2.58231,1801.6,1801.5,1.11027]
[1743676636225,1.4721,1801.6,1801.5,1.11027]
[1743676636922,4.31793,1801.8,1801.7,1.11015]
[1743676637113,5.83883,1801.8,1801.7,1.11015]
[1743676637519,4.7287,1801.8,1801.7,1.11015]
[1743676637714,4.7287,1801.8,1801.4,4.7081]
[1743676637715,4.7287,1801.8,1801.6,1.11018]
[1743676638020,1.11019,1801.7,1801.6,1.11018]
[1743676638222,2.63109,1801.7,1801.6,1.11018]
[1743676639212,1.5209,1801.7,1801.6,1.11018]
[1743676640820,2.63105,1801.7,1801.6,1.11018]
[1743676642926,3.21611531,1802.0,1801.9,1.11002]
[1743676643119,0.00831531,1802.0,1801.9,1.11002]
[1743676643821,0.00831531,1802.0,1801.9,5.80452]
[1743676646423,0.00831531,1802.0,1801.8,1.0597]
[1743676646616,1.11021,1801.7,1801.4,2.77583]
[1743676646927,1.4734,1801.6,1801.5,1.11027]
[1743676648726,0.00831531,1802.0,1801.9,1.11002]
[1743676648930,1.50481531,1802.0,1801.9,1.11002]
[1743676649521,0.00831531,1802.0,1801.9,2.59472]
[1743676649729,1.11827531,1802.0,1801.8,2.0444]
[1743676649934,1.4965,1801.9,1801.8,3.15448]
[1743676651027,0.00831531,1802.0,1801.9,1.11002]
[1743676651225,0.00831531,1802.0,1801.9,2.52512]
[1743676654528,9.1718,1803.0,1801.9,3.9151]
[1743676654723,1.4844,1802.9,1802.8,1.10947]
[1743676654931,2.59382,1802.9,1802.8,1.10947]
[1743676655622,1.10954,1802.7,1802.5,3.2078]
[1743676655823,1.10958,1802.7,1802.5,1.10961]
[1743676656029,1.4844,1802.6,1802.5,1.10961]
[1743676656229,1.4844,1802.6,1802.4,1.48641531]
[1743676656534,1.10965,1802.5,1802.4,0.00831531]
[1743676656929,1.10965,1802.5,1802.4,1.11803531]
[1743676657334,1.10965,1802.5,1802.4,0.00831531]
[1743676657731,3.60965,1802.5,1802.4,0.00831531]
[1743676657933,5.01725,1802.5,1802.4,0.00831531]
[1743676659329,2.51725,1802.5,1802.4,1.11803531]
[1743676659838,1.4076,1802.5,1802.4,1.11803531]
[1743676660537,2.51725,1802.5,1802.4,1.11803531]
[1743676660737,5.9815,1802.8,1802.4,1.11803531]
[1743676660738,4.31731,1802.8,1802.5,2.77409]
[1743676661031,1.4378,1802.7,1802.6,1.10959]
[1743676661825,4.80247,1803.1,1802.5,4.24739]
[1743676661826,6.34634,1803.1,1803.0,1.10935]
[1743676662436,3.2078,1803.1,1803.0,1.10935]
[1743676662739,4.1886,1803.4,1803.3,1.10916]
[1743676663039,3.2078,1803.4,1803.3,1.10916]
[1743676663835,5.8496,1803.4,1803.3,1.10916]
[1743676664436,4.7405,1803.4,1803.3,1.10916]
[1743676664636,5.8496,1803.4,1803.3,1.10916]
[1743676664835,5.8496,1803.4,1803.2,2.12681531]
[1743676665232,5.8496,1803.4,1803.3,1.10916]
[1743676665428,4.7405,1803.4,1803.3,1.10916]
[1743676665634,1.5327,1803.4,1803.3,1.10916]
[1743676665838,1.5327,1803.4,1803.3,2.62236]
[1743676666040,1.0618,1803.7,1803.3,4.721]
[1743676666229,3.2078,1803.8,1803.7,1.10892]
[1743676666433,3.2078,1803.8,1803.4,2.77276]
[1743676666434,1.10892,1803.7,1803.6,1.10893]
[1743676666641,3.2078,1803.8,1803.6,1.10893]
[1743676666842,1.10888,1803.8,1803.7,1.10892]
[1743676668240,1.10888,1803.8,1803.5,4.6922]
[1743676668438,1.10888,1803.8,1803.7,1.10892]
[1743676668635,1.10888,1803.8,1803.7,1.10888]
[1743676670147,1.10907,1803.5,1803.4,1.10904]
[1743676670333,1.1091,1803.4,1803.3,4.31696]
[1743676670644,1.1091,1803.4,1803.3,3.2078]
[1743676670645,2.5231,1803.4,1803.3,3.2078]
[1743676671040,1.10916,1803.3,1803.2,1.11749531]
[1743676671246,2.52316,1803.3,1803.2,1.11749531]
[1743676671633,2.52316,1803.3,1803.2,0.00831531]
[1743676671944,2.52316,1803.3,1803.2,1.11753531]
[1743676672336,1.10916,1803.3,1803.2,1.11753531]
[1743676672540,7.01745,1803.6,1803.2,1.11753531]
[1743676672541,4.245,1803.6,1803.2,2.78134531]
[1743676672746,2.60955,1803.5,1803.4,1.10908]
[1743676673452,1.5005,1803.5,1803.3,2.64854]
[1743676673646,1.5005,1803.5,1803.2,2.12592531]
[1743676673845,1.10916,1803.3,1803.2,2.12592531]
[1743676674044,1.10916,1803.3,1803.2,1.11752531]
[1743676674348,1.10916,1803.3,1803.2,0.00831531]
[1743676674844,1.10915,1803.4,1803.3,1.10916]
[1743676675049,1.10901,1803.6,1803.5,1.10904]
[1743676675749,1.10905,1803.5,1803.4,1.10904]
[1743676676050,1.1091,1803.4,1803.3,2.62331]
[1743676677249,1.4893,1803.5,1803.2,0.00831531]
[1743676677250,1.10916,1803.3,1803.2,0.00831531]
[1743676677449,1.10916,1803.3,1803.2,2.63173531]
[1743676677450,2.59846,1803.3,1803.2,2.63173531]
[1743676677949,2.77273,1803.5,1803.3,1.10913]
[1743676677950,1.10907,1803.5,1803.3,1.10913]
[1743676678447,1.10902,1803.6,1803.4,2.5021]
[1743676678840,1.10902,1803.6,1803.5,1.10904]
[1743676679041,1.10902,1803.6,1803.5,1.393]
[1743676679242,1.10904,1803.5,1803.4,2.08067]
[1743676679453,1.10904,1803.5,1803.4,0.9716]
[1743676679746,1.10904,1803.5,1803.4,2.0807]
[1743676681651,1.1091,1803.4,1803.2,0.00831531]
[1743676681850,2.56076,1803.3,1803.2,0.00831531]
[1743676682145,4.60076,1803.3,1803.2,0.00831531]
[1743676683351,1.10941,1802.9,1802.8,2.5388]
[1743676683749,1.10941,1802.9,1802.8,3.64827]
[1743676683952,1.10941,1802.9,1802.8,1.003]
[1743676684149,1.4516,1803.0,1802.9,1.10941]
[1743676684348,2.56095,1803.0,1802.9,1.10941]
[1743676684550,0.00831531,1803.1,1803.0,1.10935]
[1743676684748,0.00831531,1803.1,1803.0,2.61235]
[1743676684950,0.00831531,1803.1,1803.0,6.17405]
[1743676685146,1e-08,1803.1,1803.0,6.17405]
[1743676687453,1.10931001,1803.1,1803.0,1.10935]
[1743676688651,1.10935,1803.0,1802.9,2.63007]
[1743676688953,1.4871,1803.0,1802.9,1.10941]
[1743676689157,2.59648,1803.0,1802.9,1.10941]
[1743676689350,2.59648,1803.0,1802.9,2.63011]
[1743676689545,1.4871,1803.0,1802.9,2.63011]
[1743676691162,2.59645,1803.0,1802.9,2.63011]
[1743676691856,1.10941,1802.9,1802.8,0.00831531]
[1743676692063,2.57761,1802.9,1802.8,0.00831531]
[1743676695353,5.07761,1802.9,1802.8,1e-08]
[1743676695859,5.52743191,1802.9,1802.8,1e-08]
[1743676696463,5.07761,1802.9,1802.8,1e-08]
[1743676702463,1.10984,1802.2,1802.1,2.4251]
[1743676702656,1.10984,1802.2,1801.8,3.2078]
[1743676702657,1.10996,1802.0,1801.9,1.11001]
[1743676702857,1.10996,1802.0,1801.9,3.58741]
[1743676704360,0.00831531,1802.1,1802.0,1.10996]
[1743676704566,0.00831531,1802.1,1802.0,5.81866]
[1743676704761,0.00831531,1802.1,1802.0,8.31866]
[1743676704958,1.11821531,1802.1,1802.0,1.5009]
[1743676705853,0.00831531,1802.1,1802.0,2.61086]
[1743676706455,0.00831531,1802.1,1802.0,5.81866]
[1743676706656,1.11821531,1802.1,1802.0,4.7087]
[1743676707065,1.11821531,1802.1,1802.0,5.81866]
[1743676707773,0.00831531,1802.1,1802.0,8.31866]
[1743676708069,0.00831531,1802.1,1802.0,5.81866]
[1743676708568,1.11821531,1802.1,1802.0,5.81866]
[1743676708771,1.11821531,1802.1,1802.0,4.7087]
[1743676709063,1.11821531,1802.1,1802.0,5.81866]
[1743676709367,0.00831531,1802.1,1802.0,5.81866]
[1743676709567,1.11821531,1802.1,1802.0,5.81866]
[1743676709758,0.00831531,1802.1,1802.0,5.81866]
[1743676710161,0.00831531,1802.1,1802.0,4.7087]
[1743676710360,1.11821531,1802.1,1802.0,4.7087]
[1743676710563,0.00831531,1802.1,1802.0,5.81866]
[1743676713074,1.43411531,1802.1,1802.0,5.81866]
[1743676713275,2.54401531,1802.1,1802.0,5.81866]
[1743676713566,2.54401531,1802.1,1802.0,4.7087]
[1743676713767,1.10996,1802.0,1801.9,0.9765]
[1743676714072,2.53576,1802.0,1801.9,0.9765]
[1743676714275,1.11002,1801.9,1801.8,0.00831531]
[1743676714571,5.74362,1801.9,1801.8,0.00831531]
[1743676714873,2.53582,1801.9,1801.8,0.00831531]
[1743676715075,2.53582,1801.9,1801.8,2.65289531]
[1743676715771,2.53582,1801.9,1801.8,1.54281531]
[1743676716074,2.53582,1801.9,1801.8,0.00831531]
[1743676718082,2.53582,1801.9,1801.8,1.46891531]
[1743676718273,2.53582,1801.9,1801.8,2.57899531]
[1743676718671,3.2078,1802.0,1801.8,1.46891531]
[1743676718974,1.10999,1802.0,1801.9,1.9763]
[1743676719375,1.10999,1802.0,1801.9,3.4369]
[1743676720170,1.10999,1802.0,1801.8,1.11835531]
[1743676720171,1.11002,1801.9,1801.8,0.00831531]
[1743676720372,2.49692,1801.9,1801.8,0.00831531]
[1743676721977,2.49692,1801.9,1801.8,1.52021531]
[1743676722774,4.99692,1801.9,1801.8,0.00831531]
[1743676722971,4.99692,1801.9,1801.3,3.2078]
[1743676722972,1.11027,1801.5,1801.4,1.11031]
[1743676723168,2.77548,1801.7,1801.3,2.1068]
[1743676723374,2.49993,1801.4,1801.3,1.0444]
[1743676725372,1.11039,1801.3,1801.2,0.00831531]
[1743676725584,5.79279,1801.3,1801.2,0.00831531]
[1743676727982,8.29279,1801.3,1801.2,1e-08]
[1743676731774,1.11101,1800.3,1800.2,4.31883]
[1743676731973,1.11101,1800.3,1800.2,2.15343]
[1743676732176,1.11098,1800.4,1800.3,1.11096]
[1743676732575,1.11101,1800.3,1800.2,2.15344]
[1743676733094,4.21417,1800.5,1800.1,0.9902]
[1743676733095,1.11107,1800.2,1800.1,0.99851531]
[1743676733283,2.54597,1800.2,1800.1,0.99851531]
[1743676733975,1.11106,1800.3,1800.1,0.99851531]
[1743676734181,1.11929531,1800.4,1800.3,1.11101]
[1743676734782,0.00831531,1800.4,1800.3,1.11101]
[1743676735082,0.00831531,1800.4,1800.3,3.61101]
[1743676735280,1.11101,1800.3,1800.2,1.11102]
[1743676735580,1.11107,1800.2,1800.1,5.31740531]
[1743676735783,1.11930531,1800.4,1800.3,1.11101]
[1743676736176,1.11926531,1800.4,1800.3,1.11101]
[1743676737078,0.00831531,1800.4,1800.1,4.20631531]
[1743676737280,1.11101,1800.3,1800.2,3.2078]
[1743676737985,1.11107,1800.2,1800.1,5.31739531]
[1743676738376,4.24439531,1800.4,1800.2,1.11106]
[1743676738377,1.11105,1800.3,1800.2,1.11106]
[1743676738685,1.11102,1800.3,1800.2,1.11103]
[1743676739182,1.11931531,1800.4,1800.3,1.11101]
[1743676739487,0.00831531,1800.4,1800.1,6.98412531]
[1743676739685,1.11926531,1800.4,1800.3,1.11101]
[1743676740184,0.00831531,1800.4,1800.3,1.11101]
[1743676741282,0.00831531,1800.4,1800.3,6.81881]
[1743676743885,0.00831531,1800.4,1800.1,4.20631531]
[1743676744088,0.00831531,1800.4,1800.3,1.11101]
[1743676744287,0.00831531,1800.4,1800.3,2.13451]
[1743676744893,1.11926531,1800.4,1800.3,2.13451]
[1743676745093,1.11926531,1800.4,1800.3,1.0235]
[1743676745588,1.11926531,1800.4,1800.1,2.10963531]
[1743676745589,1.11107,1800.2,1800.1,0.99851531]
[1743676745790,1.11107,1800.2,1800.1,0.00831531]
[1743676746396,2.55627,1800.2,1800.1,0.00831531]
[1743676747190,0.00831531,1800.4,1800.1,0.00831531]
[1743676747395,0.00831531,1800.4,1800.3,1.11101]
[1743676747693,0.00831531,1800.4,1800.3,3.52621]
[1743676750396,1.11926531,1800.4,1800.3,3.52621]
[1743676751487,1.11926531,1800.4,1800.1,7.04824531]
[1743676751488,1.11107,1800.2,1800.1,1.06261531]
[1743676752587,2.63896,1800.3,1800.1,1.06261531]
[1743676752787,4.19211531,1800.4,1800.3,1.11101]
[1743676752788,0.00831531,1800.4,1800.3,1.11101]
[1743676753287,0.00831531,1800.4,1800.3,3.52191]
[1743676753493,1.11926531,1800.4,1800.3,3.52191]
[1743676753686,1.11926531,1800.4,1800.3,2.4109]